[Event "*** Biggest EVER Titled Tuesday"]
[Site "Chess.com"]
[Date "2018.04.17"]
[Round "2"]
[White "colemman"]
[Black "TheCount"]
[Result "1/2-1/2"]
[WhiteElo "2492"]
[BlackElo "2537"]
[TimeControl "180+2"]
[EndTime "13:23:15 PDT"]
[Termination "Game drawn - insufficient material"]

1. d4 {[%clk 0:03:01.9]} 1... Nf6 {[%clk 0:03:00.4]} 2. Nf3 {[%clk 0:03:03.3]}
2... g6 {[%clk 0:03:01.6]} 3. Nbd2 {[%clk 0:03:04.4]} 3... Bg7 {[%clk
0:02:56.4]} 4. e4 {[%clk 0:03:03.4]} 4... d6 {[%clk 0:02:57.8]} 5. Bc4 {[%clk
0:03:04]} 5... c5 {[%clk 0:02:56.4]} 6. dxc5 {[%clk 0:03:02.1]} 6... dxc5 {[%clk
0:02:57.7]} 7. O-O {[%clk 0:03:03.5]} 7... O-O {[%clk 0:02:47.1]} 8. Qe2 {[%clk
0:03:04]} 8... Nc6 {[%clk 0:02:46.5]} 9. e5 {[%clk 0:03:04.3]} 9... Nd5 {[%clk
0:02:46.7]} 10. Nb3 {[%clk 0:03:03.9]} 10... b6 {[%clk 0:02:37.4]} 11. Rd1
{[%clk 0:03:01.3]} 11... e6 {[%clk 0:02:38.5]} 12. Bg5 {[%clk 0:03:01.6]} 12...
Qc7 {[%clk 0:02:37.5]} 13. Bxd5 {[%clk 0:02:56.5]} 13... exd5 {[%clk 0:02:38.1]}
14. Rxd5 {[%clk 0:02:58]} 14... Be6 {[%clk 0:02:20.5]} 15. Rdd1 {[%clk
0:02:42.5]} 15... Nxe5 {[%clk 0:02:17.6]} 16. Bf4 {[%clk 0:02:37.4]} 16... Nxf3+
{[%clk 0:02:14.9]} 17. Qxf3 {[%clk 0:02:38.8]} 17... Qe7 {[%clk 0:02:03]} 18.
Bd6 {[%clk 0:02:34.8]} 18... Qg5 {[%clk 0:01:52.1]} 19. Bxf8 {[%clk 0:02:31.9]}
19... Rxf8 {[%clk 0:01:54]} 20. h3 {[%clk 0:02:24.9]} 20... Bxb2 {[%clk
0:01:53.5]} 21. Rab1 {[%clk 0:02:25.5]} 21... Be5 {[%clk 0:01:51.7]} 22. Re1
{[%clk 0:01:54.2]} 22... c4 {[%clk 0:01:19.1]} 23. h4 {[%clk 0:01:20.9]} 23...
Qf6 {[%clk 0:01:06.2]} 24. Nd2 {[%clk 0:01:09.3]} 24... Rc8 {[%clk 0:00:30.7]}
25. Qxf6 {[%clk 0:00:51.8]} 25... Bxf6 {[%clk 0:00:31.8]} 26. g3 {[%clk
0:00:53.3]} 26... Kg7 {[%clk 0:00:28.4]} 27. Ne4 {[%clk 0:00:52.5]} 27... Be7
{[%clk 0:00:26.3]} 28. Ng5 {[%clk 0:00:50.2]} 28... Bxg5 {[%clk 0:00:27.3]} 29.
hxg5 {[%clk 0:00:51.7]} 29... Rc5 {[%clk 0:00:28.9]} 30. f4 {[%clk 0:00:48.6]}
30... Ra5 {[%clk 0:00:29.5]} 31. Ra1 {[%clk 0:00:47.2]} 31... Ra3 {[%clk
0:00:30]} 32. Kf2 {[%clk 0:00:44.4]} 32... b5 {[%clk 0:00:26.7]} 33. Re3 {[%clk
0:00:44.8]} 33... c3 {[%clk 0:00:26.8]} 34. Ke2 {[%clk 0:00:40.1]} 34... b4
{[%clk 0:00:25]} 35. Rxe6 {[%clk 0:00:27]} 35... fxe6 {[%clk 0:00:25.7]} 36. Kd3
{[%clk 0:00:28.7]} 36... a5 {[%clk 0:00:21.4]} 37. Kc4 {[%clk 0:00:28.2]} 37...
h6 {[%clk 0:00:20.6]} 38. gxh6+ {[%clk 0:00:28.4]} 38... Kxh6 {[%clk 0:00:22.5]}
39. Kd3 {[%clk 0:00:23]} 39... g5 {[%clk 0:00:23.1]} 40. Re1 {[%clk 0:00:22.4]}
40... gxf4 {[%clk 0:00:22.8]} 41. gxf4 {[%clk 0:00:22.5]} 41... Rxa2 {[%clk
0:00:23.1]} 42. Rxe6+ {[%clk 0:00:23.7]} 42... Kg7 {[%clk 0:00:24.6]} 43. Ra6
{[%clk 0:00:23.2]} 43... Ra1 {[%clk 0:00:24.7]} 44. f5 {[%clk 0:00:24.2]} 44...
Kf7 {[%clk 0:00:26.1]} 45. Kc4 {[%clk 0:00:24.8]} 45... Ra2 {[%clk 0:00:26.6]}
46. Kd3 {[%clk 0:00:25.1]} 46... a4 {[%clk 0:00:27.1]} 47. Rb6 {[%clk
0:00:23.8]} 47... Rb2 {[%clk 0:00:26.6]} 48. Ra6 {[%clk 0:00:24.4]} 48... a3
{[%clk 0:00:27.9]} 49. Kc4 {[%clk 0:00:25.3]} 49... a2 {[%clk 0:00:22.4]} 50.
Kd3 {[%clk 0:00:22.7]} 50... Ke7 {[%clk 0:00:23.7]} 51. Kc4 {[%clk 0:00:23.4]}
51... a1=Q {[%clk 0:00:20.3]} 52. Rxa1 {[%clk 0:00:23.2]} 52... Kf6 {[%clk
0:00:21.8]} 53. Ra5 {[%clk 0:00:23.8]} 53... Rxc2 {[%clk 0:00:17.8]} 54. Kxb4
{[%clk 0:00:23.2]} 54... Rc1 {[%clk 0:00:17.7]} 55. Kb3 {[%clk 0:00:24.2]} 55...
Rf1 {[%clk 0:00:18]} 56. Kxc3 {[%clk 0:00:24.6]} 56... Rxf5 {[%clk 0:00:19.4]}
57. Rxf5+ {[%clk 0:00:25.9]} 57... Kxf5 {[%clk 0:00:21.3]} 1/2-1/2

[Event "*** Biggest EVER Titled Tuesday"]
[Site "Chess.com"]
[Date "2018.04.17"]
[Round "2"]
[White "Fablibi"]
[Black "chegueps"]
[Result "1-0"]
[WhiteElo "2514"]
[BlackElo "2262"]
[TimeControl "180+2"]
[EndTime "13:23:24 PDT"]
[Termination "Fablibi won by resignation"]

1. e4 {[%clk 0:03:01]} 1... d6 {[%clk 0:03:00.2]} 2. d4 {[%clk 0:03:01.6]} 2...
Nf6 {[%clk 0:02:58.2]} 3. Nc3 {[%clk 0:03:02.9]} 3... e5 {[%clk 0:02:59.3]} 4.
Nf3 {[%clk 0:03:03.4]} 4... Nbd7 {[%clk 0:03:00.2]} 5. Bc4 {[%clk 0:03:03.7]}
5... Be7 {[%clk 0:03:01.4]} 6. a4 {[%clk 0:03:05.2]} 6... O-O {[%clk 0:03:01.5]}
7. O-O {[%clk 0:03:06.2]} 7... c6 {[%clk 0:03:03]} 8. h3 {[%clk 0:03:06.8]} 8...
a5 {[%clk 0:03:04.3]} 9. Re1 {[%clk 0:03:03.1]} 9... exd4 {[%clk 0:03:04]} 10.
Nxd4 {[%clk 0:03:03.7]} 10... Nb6 {[%clk 0:03:05.9]} 11. Bb3 {[%clk 0:03:03.7]}
11... Nfd7 {[%clk 0:03:06.9]} 12. Be3 {[%clk 0:03:02.2]} 12... Nc5 {[%clk
0:03:05]} 13. Qf3 {[%clk 0:03:00.9]} 13... Bf6 {[%clk 0:02:40.2]} 14. Rad1
{[%clk 0:03:01]} 14... Qe7 {[%clk 0:02:21.3]} 15. Nf5 {[%clk 0:02:54.7]} 15...
Bxf5 {[%clk 0:01:57.8]} 16. exf5 {[%clk 0:02:41.1]} 16... d5 {[%clk 0:01:50.6]}
17. g4 {[%clk 0:02:04]} 17... Nbd7 {[%clk 0:01:26.9]} 18. Qg2 {[%clk 0:01:33.7]}
18... Bg5 {[%clk 0:01:14.1]} 19. f4 {[%clk 0:01:33.1]} 19... Bh4 {[%clk
0:01:08.5]} 20. Re2 {[%clk 0:01:32.3]} 20... Nxb3 {[%clk 0:00:48.4]} 21. cxb3
{[%clk 0:01:34.2]} 21... Bf6 {[%clk 0:00:26.7]} 22. g5 {[%clk 0:01:31.1]} 22...
Bxc3 {[%clk 0:00:26.2]} 23. bxc3 {[%clk 0:01:33]} 23... Rfe8 {[%clk 0:00:27]}
24. Rde1 {[%clk 0:01:32.8]} 24... Qd6 {[%clk 0:00:27]} 25. f6 {[%clk 0:01:25]}
25... Re4 {[%clk 0:00:23.4]} 26. fxg7 {[%clk 0:01:13.6]} 26... Rae8 {[%clk
0:00:24.5]} 27. f5 {[%clk 0:01:15]} 27... Ne5 {[%clk 0:00:22.2]} 28. Bd4 {[%clk
0:01:07.4]} 28... Nd3 {[%clk 0:00:18.6]} 29. Rxe4 {[%clk 0:01:06.5]} 29... dxe4
{[%clk 0:00:19.6]} 30. Rxe4 {[%clk 0:00:57.8]} 30... Rxe4 {[%clk 0:00:10.6]} 31.
Qxe4 {[%clk 0:00:59.7]} 31... Qg3+ {[%clk 0:00:12.3]} 32. Qg2 {[%clk 0:01:01]}
32... Qe1+ {[%clk 0:00:12.6]} 33. Kh2 {[%clk 0:01:01.2]} 33... Nf4 {[%clk
0:00:14]} 34. Qf2 {[%clk 0:00:55.2]} 34... Qc1 {[%clk 0:00:13.1]} 35. Qe3 {[%clk
0:00:47.1]} 35... Qc2+ {[%clk 0:00:13.7]} 36. Kg3 {[%clk 0:00:44.5]} 36... Ne2+
{[%clk 0:00:14.9]} 37. Kh4 {[%clk 0:00:43.1]} 37... Nxd4 {[%clk 0:00:15.7]} 38.
Qxd4 {[%clk 0:00:18.1]} 38... Qxf5 {[%clk 0:00:16.9]} 39. b4 {[%clk 0:00:15.2]}
39... axb4 {[%clk 0:00:17.6]} 40. cxb4 {[%clk 0:00:17.1]} 40... Qe6 {[%clk
0:00:14.4]} 41. Kg3 {[%clk 0:00:13.9]} 41... Qe1+ {[%clk 0:00:15.4]} 42. Kf4
{[%clk 0:00:15.1]} 42... Qe6 {[%clk 0:00:16.2]} 43. h4 {[%clk 0:00:14.8]} 43...
h6 {[%clk 0:00:17.2]} 44. Qd8+ {[%clk 0:00:09.2]} 44... Kxg7 {[%clk 0:00:18.2]}
45. gxh6+ {[%clk 0:00:10.1]} 45... Kh7 {[%clk 0:00:17.1]} 46. Qg5 {[%clk
0:00:10.4]} 46... Qxh6 {[%clk 0:00:17.1]} 47. Qxh6+ {[%clk 0:00:11.2]} 47...
Kxh6 {[%clk 0:00:19]} 48. Kf5 {[%clk 0:00:13.1]} 48... Kg7 {[%clk 0:00:18.9]}
49. a5 {[%clk 0:00:12.1]} 49... f6 {[%clk 0:00:17.8]} 50. h5 {[%clk 0:00:13.2]}
50... Kh6 {[%clk 0:00:18.6]} 51. Kxf6 {[%clk 0:00:14.6]} 51... Kxh5 {[%clk
0:00:18.8]} 52. Ke6 {[%clk 0:00:16.1]} 52... Kg6 {[%clk 0:00:20.7]} 53. Kd6
{[%clk 0:00:17.3]} 53... Kf6 {[%clk 0:00:21.9]} 54. Kc7 {[%clk 0:00:18.5]} 1-0

[Event "*** Biggest EVER Titled Tuesday"]
[Site "Chess.com"]
[Date "2018.04.17"]
[Round "2"]
[White "Ellaijio_B"]
[Black "AbdAlAgathos"]
[Result "1-0"]
[WhiteElo "2547"]
[BlackElo "2304"]
[TimeControl "180+2"]
[EndTime "13:23:27 PDT"]
[Termination "Ellaijio_B won by resignation"]

1. e4 {[%clk 0:03:01.9]} 1... e6 {[%clk 0:02:58.6]} 2. Qe2 {[%clk 0:03:02.1]}
2... c5 {[%clk 0:02:55.9]} 3. b3 {[%clk 0:03:03.1]} 3... Nc6 {[%clk 0:02:56.7]}
4. Bb2 {[%clk 0:03:04.6]} 4... Nge7 {[%clk 0:02:49.3]} 5. g3 {[%clk 0:03:01.3]}
5... d5 {[%clk 0:02:41.7]} 6. Bg2 {[%clk 0:03:01.6]} 6... dxe4 {[%clk
0:02:28.2]} 7. Qxe4 {[%clk 0:03:00.5]} 7... Nf5 {[%clk 0:02:23]} 8. Nf3 {[%clk
0:02:57]} 8... Be7 {[%clk 0:02:18.6]} 9. O-O {[%clk 0:02:57.5]} 9... Bf6 {[%clk
0:02:16.1]} 10. Bxf6 {[%clk 0:02:54.6]} 10... Qxf6 {[%clk 0:02:18]} 11. Na3
{[%clk 0:02:47.9]} 11... O-O {[%clk 0:02:18]} 12. Nc4 {[%clk 0:02:47.8]} 12...
Rd8 {[%clk 0:02:07.2]} 13. c3 {[%clk 0:02:44.9]} 13... Rb8 {[%clk 0:02:02.2]}
14. Rad1 {[%clk 0:02:44.6]} 14... Nce7 {[%clk 0:01:54.4]} 15. Qf4 {[%clk
0:02:37.5]} 15... Bd7 {[%clk 0:01:52.1]} 16. Nfe5 {[%clk 0:02:35.5]} 16... Be8
{[%clk 0:01:49]} 17. Ng4 {[%clk 0:02:25.8]} 17... Qg6 {[%clk 0:01:41]} 18. Nce5
{[%clk 0:02:26.2]} 18... Qh5 {[%clk 0:01:42.3]} 19. Bf3 {[%clk 0:02:24.6]} 19...
Qh3 {[%clk 0:01:41.7]} 20. Bg2 {[%clk 0:01:56.5]} 20... Qh5 {[%clk 0:01:41.9]}
21. h4 {[%clk 0:01:54.4]} 21... Ng6 {[%clk 0:01:25.4]} 22. Nxg6 {[%clk
0:01:54.9]} 22... Qxg6 {[%clk 0:01:21.9]} 23. Ne5 {[%clk 0:01:54]} 23... Qf6
{[%clk 0:01:22.3]} 24. Be4 {[%clk 0:01:49.9]} 24... Nd6 {[%clk 0:01:13.6]} 25.
Qe3 {[%clk 0:01:32.9]} 25... Nxe4 {[%clk 0:01:12]} 26. Qxe4 {[%clk 0:01:33.8]}
26... Rd5 {[%clk 0:01:09.7]} 27. f4 {[%clk 0:01:30.8]} 27... b6 {[%clk
0:01:03.3]} 28. d4 {[%clk 0:01:23.8]} 28... Rbd8 {[%clk 0:00:57.8]} 29. Rd2
{[%clk 0:01:19.3]} 29... Qe7 {[%clk 0:00:45.5]} 30. Rfd1 {[%clk 0:01:18.3]}
30... cxd4 {[%clk 0:00:46.1]} 31. Rxd4 {[%clk 0:01:13.2]} 31... Qc5 {[%clk
0:00:46.4]} 32. Qe3 {[%clk 0:01:13.8]} 32... Rxd4 {[%clk 0:00:43.1]} 33. Rxd4
{[%clk 0:01:13.7]} 33... Rxd4 {[%clk 0:00:43.9]} 34. Qxd4 {[%clk 0:01:14.3]}
34... Qxd4+ {[%clk 0:00:44.8]} 35. cxd4 {[%clk 0:01:16.2]} 35... f6 {[%clk
0:00:44.7]} 36. Nc4 {[%clk 0:01:15.5]} 36... Bc6 {[%clk 0:00:39.5]} 37. Kf2
{[%clk 0:01:15.1]} 37... Kf8 {[%clk 0:00:36.6]} 38. Ke3 {[%clk 0:01:15.6]} 38...
Ke7 {[%clk 0:00:37.7]} 39. Nb2 {[%clk 0:01:16.1]} 39... Bd5 {[%clk 0:00:37.6]}
40. Nd3 {[%clk 0:01:16.8]} 40... a5 {[%clk 0:00:35.6]} 41. Nc1 {[%clk
0:01:10.9]} 41... Kd6 {[%clk 0:00:36.4]} 42. Kd3 {[%clk 0:01:11.8]} 42... h6
{[%clk 0:00:32.8]} 43. Kc3 {[%clk 0:01:09.7]} 43... g5 {[%clk 0:00:32.9]} 44.
Nd3 {[%clk 0:01:00.2]} 44... gxh4 {[%clk 0:00:30.8]} 45. gxh4 {[%clk 0:01:00.9]}
45... Be4 {[%clk 0:00:30.9]} 46. Nb2 {[%clk 0:00:56.2]} 46... b5 {[%clk
0:00:26.7]} 47. Nd1 {[%clk 0:00:56.1]} 47... Bb1 {[%clk 0:00:23.7]} 48. Ne3
{[%clk 0:00:55.9]} 48... Kc6 {[%clk 0:00:15]} 49. a3 {[%clk 0:00:56.4]} 49...
Be4 {[%clk 0:00:15]} 50. Ng4 {[%clk 0:00:56.1]} 50... Bf5 {[%clk 0:00:07.9]} 51.
Nxf6 {[%clk 0:00:51.3]} 51... Kd6 {[%clk 0:00:07.2]} 52. Nh5 {[%clk 0:00:42.4]}
52... Kd5 {[%clk 0:00:09.1]} 53. Ng3 {[%clk 0:00:41.5]} 53... Bg4 {[%clk
0:00:10.1]} 54. Kd3 {[%clk 0:00:40.3]} 54... Bh3 {[%clk 0:00:09.3]} 55. Ke3
{[%clk 0:00:36.9]} 55... Bg4 {[%clk 0:00:10.1]} 56. Ne4 {[%clk 0:00:37.4]} 56...
Bd1 {[%clk 0:00:09.3]} 57. Nc3+ {[%clk 0:00:38]} 1-0

[Event "*** Biggest EVER Titled Tuesday"]
[Site "Chess.com"]
[Date "2018.04.17"]
[Round "2"]
[White "GadimbayliA"]
[Black "ArnaudovP"]
[Result "1/2-1/2"]
[WhiteElo "2377"]
[BlackElo "2469"]
[TimeControl "180+2"]
[EndTime "13:23:35 PDT"]
[Termination "Game drawn by agreement"]

1. e4 {[%clk 0:03:01.9]} 1... e5 {[%clk 0:03:00.1]} 2. Nf3 {[%clk 0:03:02.6]}
2... Nc6 {[%clk 0:03:01.5]} 3. Bb5 {[%clk 0:03:03.7]} 3... a6 {[%clk 0:03:02.4]}
4. Ba4 {[%clk 0:03:04.8]} 4... d6 {[%clk 0:03:03.4]} 5. O-O {[%clk 0:03:04.5]}
5... Bd7 {[%clk 0:03:04.4]} 6. c3 {[%clk 0:03:05]} 6... g6 {[%clk 0:03:04.4]} 7.
d4 {[%clk 0:03:06.1]} 7... Bg7 {[%clk 0:03:05.7]} 8. h3 {[%clk 0:03:05.3]} 8...
Nf6 {[%clk 0:03:00.8]} 9. Re1 {[%clk 0:03:06]} 9... O-O {[%clk 0:03:00.7]} 10.
Nbd2 {[%clk 0:03:03]} 10... Re8 {[%clk 0:03:00.2]} 11. d5 {[%clk 0:03:03.4]}
11... Ne7 {[%clk 0:02:59.9]} 12. Bxd7 {[%clk 0:03:04.8]} 12... Nxd7 {[%clk
0:03:01.2]} 13. c4 {[%clk 0:03:01.2]} 13... h6 {[%clk 0:03:01.7]} 14. Nf1 {[%clk
0:02:59.3]} 14... f5 {[%clk 0:02:59.8]} 15. exf5 {[%clk 0:03:00.2]} 15... gxf5
{[%clk 0:03:00.4]} 16. Ng3 {[%clk 0:02:44.4]} 16... Nf6 {[%clk 0:03:00.6]} 17.
Nh4 {[%clk 0:02:45.2]} 17... Qd7 {[%clk 0:02:53.8]} 18. Qf3 {[%clk 0:02:37]}
18... f4 {[%clk 0:02:46.7]} 19. Ne4 {[%clk 0:02:36.1]} 19... Rf8 {[%clk
0:02:41.1]} 20. Bd2 {[%clk 0:02:18.8]} 20... Nf5 {[%clk 0:02:33.4]} 21. Nxf5
{[%clk 0:01:53.2]} 21... Qxf5 {[%clk 0:02:33.1]} 22. c5 {[%clk 0:01:53.9]} 22...
Rad8 {[%clk 0:02:28.1]} 23. cxd6 {[%clk 0:01:52.7]} 23... Nxe4 {[%clk
0:02:22.5]} 24. Rxe4 {[%clk 0:01:52.7]} 24... Rxd6 {[%clk 0:02:22]} 25. Bb4
{[%clk 0:01:53.8]} 25... Rxd5 {[%clk 0:02:10.1]} 26. Bxf8 {[%clk 0:01:54.9]}
26... Bxf8 {[%clk 0:02:10.3]} 27. Rae1 {[%clk 0:01:50.9]} 27... Bd6 {[%clk
0:02:02.4]} 28. Qb3 {[%clk 0:01:47.1]} 28... Qf7 {[%clk 0:01:52]} 29. Qxb7
{[%clk 0:01:22.8]} 29... Rd2 {[%clk 0:01:51.4]} 30. Qxa6 {[%clk 0:01:12.3]}
30... f3 {[%clk 0:01:33.4]} 31. Qc4 {[%clk 0:00:48.9]} 31... Rxb2 {[%clk
0:01:27]} 32. a4 {[%clk 0:00:46.2]} 32... fxg2 {[%clk 0:01:22.2]} 33. Qxf7+
{[%clk 0:00:44.3]} 33... Kxf7 {[%clk 0:01:22.4]} 34. Kxg2 {[%clk 0:00:45.7]}
34... Ra2 {[%clk 0:01:20.3]} 35. R1e2 {[%clk 0:00:45.2]} 35... Ra3 {[%clk
0:01:17.5]} 36. R2e3 {[%clk 0:00:45.6]} 36... Ra2 {[%clk 0:01:18]} 37. Kg3
{[%clk 0:00:36.8]} 37... Ke6 {[%clk 0:01:09.8]} 38. Re2 {[%clk 0:00:34.2]} 38...
Ra3+ {[%clk 0:01:09.3]} 39. Kg4 {[%clk 0:00:35.3]} 39... Kd5 {[%clk 0:01:08]}
40. h4 {[%clk 0:00:35.6]} 40... c5 {[%clk 0:01:05]} 41. f3 {[%clk 0:00:34.3]}
41... c4 {[%clk 0:01:01]} 42. Rd2+ {[%clk 0:00:35.3]} 42... Kc5 {[%clk
0:00:59.4]} 43. Rxc4+ {[%clk 0:00:34.7]} 43... Kxc4 {[%clk 0:01:00]} 44. Rxd6
{[%clk 0:00:36.2]} 44... Rxa4 {[%clk 0:00:55.3]} 45. Rxh6 {[%clk 0:00:32.1]}
45... Kd3+ {[%clk 0:00:55.1]} 46. Kg5 {[%clk 0:00:33.1]} 46... Ke3 {[%clk
0:00:54.8]} 47. Rf6 {[%clk 0:00:26]} 47... Ra1 {[%clk 0:00:45.5]} 48. h5 {[%clk
0:00:23.1]} 48... Rg1+ {[%clk 0:00:45.9]} 49. Kh6 {[%clk 0:00:24.3]} 49... e4
{[%clk 0:00:39.2]} 50. fxe4 {[%clk 0:00:24.2]} 50... Kxe4 {[%clk 0:00:40.5]} 51.
Kh7 {[%clk 0:00:24.4]} 51... Ke5 {[%clk 0:00:40.3]} 52. Rf2 {[%clk 0:00:23.6]}
52... Ke6 {[%clk 0:00:39.9]} 53. h6 {[%clk 0:00:24.6]} 53... Ke7 {[%clk
0:00:40.9]} 54. Kh8 {[%clk 0:00:25.4]} 54... Rg3 {[%clk 0:00:40.6]} 55. Rf4
{[%clk 0:00:26.2]} 55... Rg1 {[%clk 0:00:40.6]} 56. Rf5 {[%clk 0:00:27.1]} 56...
Rg6 {[%clk 0:00:41.1]} 57. Kh7 {[%clk 0:00:25.6]} 57... Rg1 {[%clk 0:00:41.8]}
58. Ra5 {[%clk 0:00:26.9]} 58... Kf7 {[%clk 0:00:42.8]} 59. Ra7+ {[%clk
0:00:27.4]} 59... Kf8 {[%clk 0:00:43.9]} 60. Rg7 {[%clk 0:00:28.4]} 60... Ra1
{[%clk 0:00:44.4]} 61. Rg8+ {[%clk 0:00:28.4]} 61... Kf7 {[%clk 0:00:44.8]} 62.
Rg5 {[%clk 0:00:28.3]} 62... Rf1 {[%clk 0:00:42.8]} 63. Kh8 {[%clk 0:00:28]}
63... Rf2 {[%clk 0:00:43.4]} 64. Rg3 {[%clk 0:00:27.7]} 64... Rf1 {[%clk
0:00:44.1]} 65. Rg7+ {[%clk 0:00:28.3]} 65... Kf8 {[%clk 0:00:44.4]} 66. h7
{[%clk 0:00:29.4]} 1/2-1/2

[Event "*** Biggest EVER Titled Tuesday"]
[Site "Chess.com"]
[Date "2018.04.17"]
[Round "2"]
[White "HovmoellerHest"]
[Black "Saitama_Hero"]
[Result "0-1"]
[WhiteElo "2212"]
[BlackElo "2138"]
[TimeControl "180+2"]
[EndTime "13:23:37 PDT"]
[Termination "Saitama_Hero won by checkmate"]

1. d4 {[%clk 0:03:01.9]} 1... Nf6 {[%clk 0:02:55.7]} 2. c4 {[%clk 0:03:02.4]}
2... g6 {[%clk 0:02:51.3]} 3. Nc3 {[%clk 0:03:02.9]} 3... Bg7 {[%clk 0:02:52.8]}
4. e4 {[%clk 0:03:03.2]} 4... d6 {[%clk 0:02:54.7]} 5. f3 {[%clk 0:03:03.2]}
5... O-O {[%clk 0:02:55.3]} 6. Be3 {[%clk 0:03:03.9]} 6... c5 {[%clk 0:02:56.3]}
7. Nge2 {[%clk 0:03:02.7]} 7... Nc6 {[%clk 0:02:55.2]} 8. Qd2 {[%clk 0:02:53.2]}
8... a6 {[%clk 0:02:41.1]} 9. d5 {[%clk 0:02:37.2]} 9... Na5 {[%clk 0:02:39.1]}
10. Nc1 {[%clk 0:02:24.6]} 10... e6 {[%clk 0:02:40.6]} 11. dxe6 {[%clk
0:02:09.3]} 11... Bxe6 {[%clk 0:02:37.8]} 12. Nd5 {[%clk 0:01:50]} 12... Bxd5
{[%clk 0:02:32.8]} 13. cxd5 {[%clk 0:01:38.4]} 13... b5 {[%clk 0:02:30.6]} 14.
Be2 {[%clk 0:01:34.9]} 14... Nd7 {[%clk 0:02:24.5]} 15. O-O {[%clk 0:01:35.1]}
15... Ne5 {[%clk 0:02:19.8]} 16. Bg5 {[%clk 0:01:28.3]} 16... Qb6 {[%clk
0:02:17.6]} 17. Rb1 {[%clk 0:01:14.6]} 17... Nac4 {[%clk 0:01:40.6]} 18. Bxc4
{[%clk 0:01:14.3]} 18... Nxc4 {[%clk 0:01:37.6]} 19. Qe2 {[%clk 0:01:11]} 19...
Rae8 {[%clk 0:01:32.7]} 20. Nd3 {[%clk 0:00:59.4]} 20... f5 {[%clk 0:01:30.4]}
21. b3 {[%clk 0:00:53.3]} 21... Na3 {[%clk 0:01:30]} 22. Rbe1 {[%clk 0:00:46.7]}
22... h6 {[%clk 0:01:22.9]} 23. Bh4 {[%clk 0:00:40.1]} 23... b4 {[%clk
0:00:59.2]} 24. Bf2 {[%clk 0:00:32.4]} 24... Nb5 {[%clk 0:00:59.5]} 25. Qc2
{[%clk 0:00:26.4]} 25... fxe4 {[%clk 0:00:56.7]} 26. Rxe4 {[%clk 0:00:24.4]}
26... Nc3 {[%clk 0:00:52.6]} 27. Rxb4 {[%clk 0:00:20.8]} 27... Qa5 {[%clk
0:00:45.1]} 28. Rc4 {[%clk 0:00:21]} 28... Re2 {[%clk 0:00:42.1]} 29. Rxc3
{[%clk 0:00:21.9]} 29... Rxc2 {[%clk 0:00:39.9]} 30. Rxc2 {[%clk 0:00:23.8]}
30... Re8 {[%clk 0:00:38.4]} 31. Rd1 {[%clk 0:00:22.9]} 31... Qb5 {[%clk
0:00:38.7]} 32. Nf4 {[%clk 0:00:22.9]} 32... Kh7 {[%clk 0:00:29.9]} 33. Ne6
{[%clk 0:00:23.5]} 33... Re7 {[%clk 0:00:28.9]} 34. Rc4 {[%clk 0:00:23.5]} 34...
Be5 {[%clk 0:00:29]} 35. f4 {[%clk 0:00:22.1]} 35... Bf6 {[%clk 0:00:28.9]} 36.
h3 {[%clk 0:00:21.2]} 36... Qa5 {[%clk 0:00:29.4]} 37. Ra4 {[%clk 0:00:21.4]}
37... Qb5 {[%clk 0:00:27.5]} 38. Rc4 {[%clk 0:00:21.7]} 38... a5 {[%clk
0:00:26.6]} 39. Kh2 {[%clk 0:00:21.2]} 39... a4 {[%clk 0:00:25]} 40. Rd3 {[%clk
0:00:18.6]} 40... axb3 {[%clk 0:00:23.2]} 41. axb3 {[%clk 0:00:20.4]} 41... Qa6
{[%clk 0:00:23.7]} 42. Bg3 {[%clk 0:00:20.9]} 42... Qa1 {[%clk 0:00:19.9]} 43.
f5 {[%clk 0:00:21.4]} 43... g5 {[%clk 0:00:19.8]} 44. Bxd6 {[%clk 0:00:21.8]}
44... Rd7 {[%clk 0:00:20.6]} 45. Bg3 {[%clk 0:00:21.9]} 45... Be5 {[%clk
0:00:20.8]} 46. Nxc5 {[%clk 0:00:19.1]} 46... Bxg3+ {[%clk 0:00:16.9]} 47. Rxg3
{[%clk 0:00:20.5]} 47... Rxd5 {[%clk 0:00:13.6]} 48. f6 {[%clk 0:00:21.2]} 48...
Qxf6 {[%clk 0:00:12.9]} 49. Ne4 {[%clk 0:00:21.8]} 49... Qe5 {[%clk 0:00:12.4]}
50. Kg1 {[%clk 0:00:16.2]} 50... Rd1+ {[%clk 0:00:13]} 51. Kf2 {[%clk
0:00:16.9]} 51... Qb2+ {[%clk 0:00:13.3]} 52. Kf3 {[%clk 0:00:17.5]} 52... Qxb3+
{[%clk 0:00:13]} 53. Ke2 {[%clk 0:00:16.7]} 53... Qd3+ {[%clk 0:00:11.1]} 54.
Kf2 {[%clk 0:00:16.9]} 54... Rf1# {[%clk 0:00:10.3]} 0-1